[Event "Titled Tuesday Blitz July 4 Late 2023"]
[White "Camacho Collados, Marcos"]
[Black "ElenGajger"]
[WhiteFideId "2266237"]
[WhiteElo "2513"]
[BlackElo "2384"]
[Result "0-1"]
[Round "9"]
[TimeControl "180+2"]
[Date "2023.07.04"]
[WhiteClock "0:00:00"]
[BlackClock "0:00:05"]
[Board "73"]

1. Nf3 {[%clk 0:03:00]}  Nf6 {[%clk 0:02:59]} 2. g3 {[%clk 0:02:59]}  g6 {[%clk 0:02:59]} 3. Bg2 {[%clk 0:02:59]}  Bg7 {[%clk 0:03:00]} 4. O-O {[%clk 0:03:00]}  O-O {[%clk 0:03:00]} 5. d3 {[%clk 0:03:01]}  d5 {[%clk 0:03:01]} 6. Nbd2 {[%clk 0:02:58]}  Nc6 {[%clk 0:02:59]} 7. e4 {[%clk 0:02:58]}  e5 {[%clk 0:02:58]} 8. Re1 {[%clk 0:02:56]}  Re8 {[%clk 0:02:58]} 9. exd5 {[%clk 0:02:55]}  Nxd5 {[%clk 0:02:56]} 10. c3 {[%clk 0:02:56]}  h6 {[%clk 0:02:44]} 11. a4 {[%clk 0:02:52]}  b6 {[%clk 0:02:30]} 12. Nc4 {[%clk 0:02:45]}  Bb7 {[%clk 0:02:25]} 13. a5 {[%clk 0:02:46]}  Nxa5 {[%clk 0:02:15]} 14. Nxa5 {[%clk 0:02:45]}  bxa5 {[%clk 0:02:16]} 15. Rxa5 {[%clk 0:02:44]}  Nb6 {[%clk 0:02:10]} 16. Nxe5 {[%clk 0:02:38]}  Bxg2 {[%clk 0:02:06]} 17. Kxg2 {[%clk 0:02:37]}  Qd6 {[%clk 0:01:27]} 18. Bf4 {[%clk 0:02:29]}  g5 {[%clk 0:01:23]} 19. Qh5 {[%clk 0:01:52]}  Re7 {[%clk 0:00:55]} 20. Nxf7 {[%clk 0:00:23]}  Qc6+ {[%clk 0:00:51]} 21. Re4 {[%clk 0:00:20]}  Rxf7 {[%clk 0:00:44]} 22. Be3 {[%clk 0:00:14]}  Nd5 {[%clk 0:00:34]} 23. Bxa7 {[%clk 0:00:11]}  Nf6 {[%clk 0:00:29]} 24. Qg6 {[%clk 0:00:11]}  Qb7 {[%clk 0:00:21]} 25. Bd4 {[%clk 0:00:09]}  Rxa5 {[%clk 0:00:10]} 26. Bxf6 {[%clk 0:00:09]}  Rxf6 {[%clk 0:00:09]} 27. Qe8+ {[%clk 0:00:09]}  Rf8 {[%clk 0:00:09]} 28. Qe6+ {[%clk 0:00:09]}  Kh8 {[%clk 0:00:09]} 29. f3 {[%clk 0:00:07]}  Raf5 {[%clk 0:00:09]} 30. Re3 {[%clk 0:00:03]}  Qxb2+ {[%clk 0:00:09]} 31. Kh3 {[%clk 0:00:03]}  Qb1 {[%clk 0:00:08]} 32. Kg4 {[%clk 0:00:03]}  Qb6 {[%clk 0:00:07]} 33. Re4 {[%clk 0:00:02]}  Qxe6 {[%clk 0:00:06]} 34. Rxe6 {[%clk 0:00:03]}  Rxf3 {[%clk 0:00:07]} 35. Kh5 {[%clk 0:00:01]}  Rxd3 {[%clk 0:00:07]} 36. h4 {[%clk 0:00:02]}  gxh4 {[%clk 0:00:06]} 37. g4 {[%clk 0:00:03]}  Rd5+ {[%clk 0:00:06]} 38. Kxh4 {[%clk 0:00:03]}  Rd6 {[%clk 0:00:06]} 39. Re7 {[%clk 0:00:03]}  Bxc3 {[%clk 0:00:06]} 40. Kh5 {[%clk 0:00:03]}  Bg7 {[%clk 0:00:06]} 41. Re1 {[%clk 0:00:02]}  Rd5+ {[%clk 0:00:05]} 42. Kh4 {[%clk 0:00:03]}  Re5 {[%clk 0:00:06]} 43. Rf1 {[%clk 0:00:00]}  Rxf1 {[%clk 0:00:05]} 0-1


[Site "https://www.chess.com"]

[Event "Titled Tuesday Blitz July 4 Late 2023"]
[White "Eggleston, Thomas A"]
[Black "Horcajuelo Rocamora, Martin"]
[WhiteFideId "412139"]
[BlackFideId "24573027"]
[WhiteElo "2361"]
[BlackElo "2495"]
[Result "1-0"]
[Round "9"]
[TimeControl "180+2"]
[Date "2023.07.04"]
[WhiteClock "0:00:03"]
[BlackClock "0:00:44"]
[Board "75"]

1. e4 {[%clk 0:03:00]}  c5 {[%clk 0:02:53]} 2. Nf3 {[%clk 0:03:01]}  e6 {[%clk 0:02:53]} 3. g3 {[%clk 0:03:01]}  Nc6 {[%clk 0:02:53]} 4. Bg2 {[%clk 0:03:01]}  Nge7 {[%clk 0:02:54]} 5. O-O {[%clk 0:03:00]}  g6 {[%clk 0:02:55]} 6. d4 {[%clk 0:02:59]}  cxd4 {[%clk 0:02:55]} 7. Nxd4 {[%clk 0:02:57]}  Bg7 {[%clk 0:02:55]} 8. Nb5 {[%clk 0:02:56]}  O-O {[%clk 0:02:55]} 9. c4 {[%clk 0:02:47]}  b6 {[%clk 0:02:51]} 10. N1c3 {[%clk 0:02:39]}  Ba6 {[%clk 0:02:49]} 11. Nd6 {[%clk 0:02:32]}  Nc8 {[%clk 0:02:44]} 12. Nxc8 {[%clk 0:02:02]}  Qxc8 {[%clk 0:02:45]} 13. Nb5 {[%clk 0:02:02]}  Bxb5 {[%clk 0:02:44]} 14. cxb5 {[%clk 0:02:02]}  Nd4 {[%clk 0:02:44]} 15. e5 {[%clk 0:01:51]}  Rb8 {[%clk 0:02:34]} 16. Qxd4 {[%clk 0:01:49]}  Qc5 {[%clk 0:02:33]} 17. Qxc5 {[%clk 0:01:44]}  bxc5 {[%clk 0:02:34]} 18. a4 {[%clk 0:01:42]}  Bxe5 {[%clk 0:02:24]} 19. Bf4 {[%clk 0:01:42]}  Bxf4 {[%clk 0:02:23]} 20. gxf4 {[%clk 0:01:42]}  d5 {[%clk 0:02:24]} 21. Rfc1 {[%clk 0:01:36]}  Rfc8 {[%clk 0:02:15]} 22. Rc2 {[%clk 0:01:33]}  c4 {[%clk 0:02:12]} 23. Rac1 {[%clk 0:01:32]}  a6 {[%clk 0:02:10]} 24. bxa6 {[%clk 0:01:29]}  Rb6 {[%clk 0:02:04]} 25. b3 {[%clk 0:01:16]}  Rxb3 {[%clk 0:02:01]} 26. a7 {[%clk 0:01:05]}  Ra8 {[%clk 0:02:00]} 27. Rxc4 {[%clk 0:01:03]}  Rxa7 {[%clk 0:01:59]} 28. Rd4 {[%clk 0:00:45]}  Kg7 {[%clk 0:01:46]} 29. Ra1 {[%clk 0:00:44]}  Ra5 {[%clk 0:01:45]} 30. Bf1 {[%clk 0:00:37]}  Kf6 {[%clk 0:01:39]} 31. Rdd1 {[%clk 0:00:34]}  Rb4 {[%clk 0:01:34]} 32. Bb5 {[%clk 0:00:34]}  Rxf4 {[%clk 0:01:34]} 33. Rac1 {[%clk 0:00:32]}  h5 {[%clk 0:01:25]} 34. Rc7 {[%clk 0:00:31]}  Kg5 {[%clk 0:01:25]} 35. Rd3 {[%clk 0:00:29]}  h4 {[%clk 0:01:24]} 36. h3 {[%clk 0:00:29]}  d4 {[%clk 0:01:21]} 37. Kg2 {[%clk 0:00:29]}  e5 {[%clk 0:01:21]} 38. Rf3 {[%clk 0:00:28]}  f5 {[%clk 0:01:20]} 39. Rxf4 {[%clk 0:00:28]}  Kxf4 {[%clk 0:01:21]} 40. Rh7 {[%clk 0:00:23]}  g5 {[%clk 0:01:21]} 41. Rd7 {[%clk 0:00:19]}  g4 {[%clk 0:01:17]} 42. hxg4 {[%clk 0:00:19]}  fxg4 {[%clk 0:01:18]} 43. Kg1 {[%clk 0:00:16]}  g3 {[%clk 0:01:16]} 44. fxg3+ {[%clk 0:00:16]}  hxg3 {[%clk 0:01:17]} 45. Rf7+ {[%clk 0:00:15]}  Ke3 {[%clk 0:01:17]} 46. Rg7 {[%clk 0:00:13]}  Kf3 {[%clk 0:01:16]} 47. Bc6+ {[%clk 0:00:11]}  Ke2 {[%clk 0:01:10]} 48. Rxg3 {[%clk 0:00:10]}  d3 {[%clk 0:01:10]} 49. Bb5 {[%clk 0:00:08]}  e4 {[%clk 0:01:10]} 50. Rg2+ {[%clk 0:00:07]}  Ke1 {[%clk 0:01:09]} 51. Rf2 {[%clk 0:00:05]}  e3 {[%clk 0:01:06]} 52. Rf1+ {[%clk 0:00:05]}  Kd2 {[%clk 0:01:05]} 53. Kg2 {[%clk 0:00:04]}  e2 {[%clk 0:01:05]} 54. Rf2 {[%clk 0:00:04]}  Ke3 {[%clk 0:00:59]} 55. Rf3+ {[%clk 0:00:04]}  Kd2 {[%clk 0:00:51]} 56. Rxd3+ {[%clk 0:00:04]}  Kc1 {[%clk 0:00:49]} 57. Re3 {[%clk 0:00:04]}  Kd1 {[%clk 0:00:44]} 58. Rxe2 {[%clk 0:00:03]} 1-0


[Site "https://www.chess.com"]

[Event "Titled Tuesday Blitz July 4 Late 2023"]
[White "Osmonbekov, Talaibek"]
[Black "Ladan, Nicholas"]
[WhiteFideId "2017253"]
[BlackFideId "30918855"]
[WhiteElo "2182"]
[BlackElo "2463"]
[Result "0-1"]
[Round "9"]
[TimeControl "180+2"]
[Date "2023.07.04"]
[WhiteClock "0:00:00"]
[BlackClock "0:00:11"]
[Board "78"]

1. d4 {[%clk 0:03:00]}  d5 {[%clk 0:03:00]} 2. Bf4 {[%clk 0:02:59]}  c5 {[%clk 0:02:59]} 3. e3 {[%clk 0:02:56]}  Nc6 {[%clk 0:02:59]} 4. Nc3 {[%clk 0:02:56]}  cxd4 {[%clk 0:02:55]} 5. exd4 {[%clk 0:02:55]}  Qb6 {[%clk 0:02:55]} 6. Nb5 {[%clk 0:02:52]}  e5 {[%clk 0:02:53]} 7. dxe5 {[%clk 0:02:38]}  Bc5 {[%clk 0:02:45]} 8. Nd6+ {[%clk 0:02:14]}  Kf8 {[%clk 0:02:41]} 9. Bg3 {[%clk 0:01:45]}  Qxb2 {[%clk 0:02:26]} 10. Bd3 {[%clk 0:01:43]}  Bg4 {[%clk 0:02:15]} 11. Ne2 {[%clk 0:01:31]}  Nxe5 {[%clk 0:02:04]} 12. Rb1 {[%clk 0:01:16]}  Nxd3+ {[%clk 0:01:58]} 13. cxd3 {[%clk 0:01:15]}  Qxe2+ {[%clk 0:01:41]} 14. Qxe2 {[%clk 0:01:15]}  Bxe2 {[%clk 0:01:42]} 15. Kxe2 {[%clk 0:01:15]}  b6 {[%clk 0:01:28]} 16. d4 {[%clk 0:01:13]}  Bxd6 {[%clk 0:01:21]} 17. Bxd6+ {[%clk 0:01:09]}  Ke8 {[%clk 0:01:21]} 18. Rhc1 {[%clk 0:01:05]}  Kd7 {[%clk 0:01:15]} 19. Be5 {[%clk 0:01:03]}  f6 {[%clk 0:00:56]} 20. Rc7+ {[%clk 0:01:02]}  Ke6 {[%clk 0:00:55]} 21. Bg3 {[%clk 0:01:02]}  Ne7 {[%clk 0:00:55]} 22. Kd3 {[%clk 0:01:00]}  Ng6 {[%clk 0:00:33]} 23. h4 {[%clk 0:00:38]}  h5 {[%clk 0:00:25]} 24. Rxg7 {[%clk 0:00:32]}  Kf5 {[%clk 0:00:23]} 25. Rb5 {[%clk 0:00:21]}  Rhd8 {[%clk 0:00:20]} 26. Kd2 {[%clk 0:00:19]}  Nf4 {[%clk 0:00:13]} 27. Rb3 {[%clk 0:00:04]}  Nxg2 {[%clk 0:00:11]} 28. Rf3+ {[%clk 0:00:03]}  Ke6 {[%clk 0:00:11]} 29. Rg6 {[%clk 0:00:00]}  Rf8 {[%clk 0:00:11]} 0-1


[Site "https://www.chess.com"]

[Event "Titled Tuesday Blitz July 4 Late 2023"]
[White "Pinheiro, Iung Alicio de O."]
[Black "Herman, Daniel"]
[WhiteFideId "2104350"]
[BlackFideId "30935008"]
[WhiteElo "2570"]
[BlackElo "2410"]
[Result "0-1"]
[Round "9"]
[TimeControl "180+2"]
[Date "2023.07.04"]
[WhiteClock "0:00:00"]
[BlackClock "0:00:08"]
[Board "80"]

1. e4 {[%clk 0:00:56]}  Nc6 {[%clk 0:02:58]} 2. Nf3 {[%clk 0:00:56]}  d6 {[%clk 0:02:57]} 3. h3 {[%clk 0:00:56]}  g6 {[%clk 0:02:52]} 4. Nc3 {[%clk 0:00:57]}  Bg7 {[%clk 0:02:52]} 5. d4 {[%clk 0:00:57]}  Nf6 {[%clk 0:02:49]} 6. Be3 {[%clk 0:00:57]}  e5 {[%clk 0:02:45]} 7. dxe5 {[%clk 0:00:55]}  dxe5 {[%clk 0:02:43]} 8. Qxd8+ {[%clk 0:00:52]}  Kxd8 {[%clk 0:02:44]} 9. O-O-O+ {[%clk 0:00:49]}  Bd7 {[%clk 0:02:28]} 10. Ng5 {[%clk 0:00:47]}  Ke8 {[%clk 0:02:17]} 11. Bc4 {[%clk 0:00:47]}  Rf8 {[%clk 0:02:12]} 12. f4 {[%clk 0:00:43]}  h6 {[%clk 0:02:02]} 13. Nf3 {[%clk 0:00:40]}  Nh5 {[%clk 0:01:58]} 14. Nd5 {[%clk 0:00:35]}  Rc8 {[%clk 0:01:53]} 15. Bc5 {[%clk 0:00:32]}  Rh8 {[%clk 0:01:26]} 16. f5 {[%clk 0:00:32]}  gxf5 {[%clk 0:01:21]} 17. exf5 {[%clk 0:00:32]}  Bxf5 {[%clk 0:01:05]} 18. g4 {[%clk 0:00:32]}  Be4 {[%clk 0:01:05]} 19. Rhf1 {[%clk 0:00:29]}  Bxd5 {[%clk 0:00:20]} 20. Bxd5 {[%clk 0:00:29]}  Nf4 {[%clk 0:00:20]} 21. Be4 {[%clk 0:00:21]}  Rd8 {[%clk 0:00:13]} 22. Rde1 {[%clk 0:00:21]}  f6 {[%clk 0:00:12]} 23. Nh4 {[%clk 0:00:18]}  Bf8 {[%clk 0:00:10]} 24. Bxc6+ {[%clk 0:00:16]}  bxc6 {[%clk 0:00:08]} 25. Bxf8 {[%clk 0:00:16]}  Kxf8 {[%clk 0:00:09]} 26. Rxf4 {[%clk 0:00:12]}  exf4 {[%clk 0:00:10]} 27. Ng6+ {[%clk 0:00:12]}  Kg7 {[%clk 0:00:10]} 28. Nxh8 {[%clk 0:00:12]}  Kxh8 {[%clk 0:00:11]} 29. Rf1 {[%clk 0:00:12]}  Rd4 {[%clk 0:00:11]} 30. c3 {[%clk 0:00:13]}  Re4 {[%clk 0:00:10]} 31. Kd2 {[%clk 0:00:13]}  Kg7 {[%clk 0:00:10]} 32. Rf3 {[%clk 0:00:13]}  Kg6 {[%clk 0:00:10]} 33. Kd3 {[%clk 0:00:14]}  Ra4 {[%clk 0:00:08]} 34. a3 {[%clk 0:00:14]}  Kg5 {[%clk 0:00:08]} 35. c4 {[%clk 0:00:13]}  c5 {[%clk 0:00:08]} 36. Kc3 {[%clk 0:00:12]}  Ra6 {[%clk 0:00:07]} 37. Kd3 {[%clk 0:00:11]}  Re6 {[%clk 0:00:08]} 38. b4 {[%clk 0:00:11]}  cxb4 {[%clk 0:00:06]} 39. axb4 {[%clk 0:00:12]}  f5 {[%clk 0:00:07]} 40. gxf5 {[%clk 0:00:10]}  Kxf5 {[%clk 0:00:08]} 41. Kd4 {[%clk 0:00:10]}  Rd6+ {[%clk 0:00:07]} 42. Kc5 {[%clk 0:00:11]}  Ke4 {[%clk 0:00:08]} 43. Rf1 {[%clk 0:00:11]}  f3 {[%clk 0:00:08]} 44. Re1+ {[%clk 0:00:12]}  Kf4 {[%clk 0:00:08]} 45. Re7 {[%clk 0:00:12]}  f2 {[%clk 0:00:08]} 46. Rxc7 {[%clk 0:00:11]}  Rf6 {[%clk 0:00:08]} 47. Rd7 {[%clk 0:00:05]}  f1=Q {[%clk 0:00:08]} 48. Rd4+ {[%clk 0:00:05]}  Ke3 {[%clk 0:00:07]} 49. Rd5 {[%clk 0:00:06]}  Qf4 {[%clk 0:00:07]} 50. Kb5 {[%clk 0:00:05]}  Qe4 {[%clk 0:00:07]} 51. Kc5 {[%clk 0:00:04]}  Rb6 {[%clk 0:00:06]} 52. b5 {[%clk 0:00:04]}  Kf3 {[%clk 0:00:06]} 53. Rd7 {[%clk 0:00:03]}  Qe3+ {[%clk 0:00:06]} 54. Kb4 {[%clk 0:00:03]}  Rf6 {[%clk 0:00:06]} 55. Rd5 {[%clk 0:00:03]}  Qe1+ {[%clk 0:00:06]} 56. Kc5 {[%clk 0:00:03]}  Kg3 {[%clk 0:00:06]} 57. Rd3+ {[%clk 0:00:02]}  Kh4 {[%clk 0:00:06]} 58. Rd5 {[%clk 0:00:03]}  Qf2+ {[%clk 0:00:05]} 59. Kb4 {[%clk 0:00:04]}  Rf3 {[%clk 0:00:05]} 60. b6 {[%clk 0:00:04]}  axb6 {[%clk 0:00:05]} 61. Kb5 {[%clk 0:00:04]}  Qb2+ {[%clk 0:00:05]} 62. Kc6 {[%clk 0:00:04]}  Rc3 {[%clk 0:00:05]} 63. Rd4+ {[%clk 0:00:04]}  Kxh3 {[%clk 0:00:06]} 64. Kd5 {[%clk 0:00:04]}  Qb4 {[%clk 0:00:05]} 65. Re4 {[%clk 0:00:05]}  Qc5+ {[%clk 0:00:05]} 66. Ke6 {[%clk 0:00:05]}  Rxc4 {[%clk 0:00:06]} 67. Re5 {[%clk 0:00:05]}  Qd4 {[%clk 0:00:06]} 68. Rd5 {[%clk 0:00:05]}  Qxd5+ {[%clk 0:00:05]} 69. Kxd5 {[%clk 0:00:05]}  Rc5+ {[%clk 0:00:06]} 70. Kd4 {[%clk 0:00:05]}  h5 {[%clk 0:00:07]} 71. Ke4 {[%clk 0:00:00]}  h4 {[%clk 0:00:08]} 0-1


[Site "https://www.chess.com"]

[Event "Titled Tuesday Blitz July 4 Late 2023"]
[White "Vlassov, Nikolai"]
[Black "Melikhov, Evgeny V."]
[WhiteFideId "4103360"]
[BlackFideId "4122046"]
[WhiteElo "2553"]
[BlackElo "2406"]
[Result "1-0"]
[Round "9"]
[TimeControl "180+2"]
[Date "2023.07.04"]
[WhiteClock "0:00:05"]
[BlackClock "0:00:05"]
[Board "82"]

1. e4 {[%clk 0:03:00]}  e5 {[%clk 0:02:58]} 2. Bc4 {[%clk 0:03:00]}  Nf6 {[%clk 0:02:57]} 3. d3 {[%clk 0:03:00]}  Nc6 {[%clk 0:02:57]} 4. Nf3 {[%clk 0:03:00]}  Bc5 {[%clk 0:02:46]} 5. Bg5 {[%clk 0:02:59]}  d6 {[%clk 0:02:39]} 6. Nc3 {[%clk 0:02:59]}  Be6 {[%clk 0:02:38]} 7. Nd2 {[%clk 0:02:58]}  h6 {[%clk 0:02:34]} 8. Bh4 {[%clk 0:02:57]}  g5 {[%clk 0:02:29]} 9. Bg3 {[%clk 0:02:58]}  a6 {[%clk 0:02:20]} 10. h4 {[%clk 0:02:56]}  g4 {[%clk 0:02:16]} 11. h5 {[%clk 0:02:56]}  Qd7 {[%clk 0:02:07]} 12. Bh4 {[%clk 0:02:46]}  Nxh5 {[%clk 0:02:04]} 13. Nd5 {[%clk 0:02:46]}  Bxd5 {[%clk 0:02:00]} 14. exd5 {[%clk 0:01:54]}  Nd4 {[%clk 0:01:59]} 15. c3 {[%clk 0:01:49]}  Nf5 {[%clk 0:01:58]} 16. Qxg4 {[%clk 0:01:47]}  Nxh4 {[%clk 0:01:54]} 17. Rxh4 {[%clk 0:01:08]}  Qxg4 {[%clk 0:01:52]} 18. Rxg4 {[%clk 0:01:08]}  O-O-O {[%clk 0:01:42]} 19. g3 {[%clk 0:00:58]}  f5 {[%clk 0:01:37]} 20. Rg6 {[%clk 0:00:40]}  Rdg8 {[%clk 0:01:31]} 21. Rxg8+ {[%clk 0:00:39]}  Rxg8 {[%clk 0:01:30]} 22. Ke2 {[%clk 0:00:39]}  Nf6 {[%clk 0:01:29]} 23. Rh1 {[%clk 0:00:36]}  Ng4 {[%clk 0:01:12]} 24. f3 {[%clk 0:00:17]}  Nf2 {[%clk 0:01:11]} 25. Rh2 {[%clk 0:00:14]}  Rxg3 {[%clk 0:01:05]} 26. Rxf2 {[%clk 0:00:14]}  Bxf2 {[%clk 0:01:05]} 27. Kxf2 {[%clk 0:00:15]}  Rg5 {[%clk 0:00:57]} 28. f4 {[%clk 0:00:12]}  exf4 {[%clk 0:00:48]} 29. Nf3 {[%clk 0:00:12]}  Rg4 {[%clk 0:00:47]} 30. d4 {[%clk 0:00:12]}  h5 {[%clk 0:00:31]} 31. Bd3 {[%clk 0:00:13]}  Rg3 {[%clk 0:00:18]} 32. Bxf5+ {[%clk 0:00:13]}  Kb8 {[%clk 0:00:17]} 33. Nh4 {[%clk 0:00:12]}  c6 {[%clk 0:00:15]} 34. dxc6 {[%clk 0:00:11]}  bxc6 {[%clk 0:00:15]} 35. Ng2 {[%clk 0:00:10]}  Rg5 {[%clk 0:00:11]} 36. Be6 {[%clk 0:00:07]}  Rg6 {[%clk 0:00:10]} 37. Nxf4 {[%clk 0:00:07]}  Rf6 {[%clk 0:00:10]} 38. Kg3 {[%clk 0:00:07]}  h4+ {[%clk 0:00:09]} 39. Kf3 {[%clk 0:00:07]}  Kc7 {[%clk 0:00:08]} 40. Bh3 {[%clk 0:00:07]}  c5 {[%clk 0:00:08]} 41. Kg4 {[%clk 0:00:05]}  Rf8 {[%clk 0:00:06]} 42. Ne6+ {[%clk 0:00:05]}  Kb6 {[%clk 0:00:06]} 43. Nxf8 {[%clk 0:00:05]}  cxd4 {[%clk 0:00:05]} 44. cxd4 {[%clk 0:00:05]} 1-0


[Site "https://www.chess.com"]

[Event "Titled Tuesday Blitz July 4 Late 2023"]
[White "Romero Arzuaga, Yudel"]
[Black "a-z30"]
[WhiteFideId "3521010"]
[WhiteElo "2377"]
[BlackElo "2477"]
[Result "1-0"]
[Round "9"]
[TimeControl "180+2"]
[Date "2023.07.04"]
[WhiteClock "0:00:14"]
[BlackClock "0:00:00"]
[Board "84"]

1. d4 {[%clk 0:02:59]}  d6 {[%clk 0:03:00]} 2. Nf3 {[%clk 0:02:59]}  Nf6 {[%clk 0:03:01]} 3. Bf4 {[%clk 0:02:57]}  c6 {[%clk 0:02:59]} 4. e3 {[%clk 0:02:57]}  Nbd7 {[%clk 0:02:44]} 5. Nbd2 {[%clk 0:02:55]}  Nh5 {[%clk 0:02:36]} 6. Bg5 {[%clk 0:02:53]}  h6 {[%clk 0:02:35]} 7. Bh4 {[%clk 0:02:53]}  g5 {[%clk 0:02:34]} 8. Bg3 {[%clk 0:02:51]}  Nxg3 {[%clk 0:02:33]} 9. hxg3 {[%clk 0:02:51]}  Bg7 {[%clk 0:02:33]} 10. Be2 {[%clk 0:02:46]}  d5 {[%clk 0:02:02]} 11. c3 {[%clk 0:02:44]}  Qb6 {[%clk 0:01:52]} 12. Qb3 {[%clk 0:02:43]}  e5 {[%clk 0:01:47]} 13. dxe5 {[%clk 0:02:40]}  Nxe5 {[%clk 0:01:46]} 14. Nxe5 {[%clk 0:02:40]}  Bxe5 {[%clk 0:01:46]} 15. Nf3 {[%clk 0:02:40]}  Bg7 {[%clk 0:01:41]} 16. Qc2 {[%clk 0:02:40]}  Be6 {[%clk 0:01:32]} 17. Bd3 {[%clk 0:02:38]}  O-O-O {[%clk 0:01:31]} 18. O-O-O {[%clk 0:02:37]}  Kb8 {[%clk 0:01:30]} 19. Nd4 {[%clk 0:02:34]}  c5 {[%clk 0:01:18]} 20. Nxe6 {[%clk 0:02:16]}  fxe6 {[%clk 0:01:13]} 21. Kb1 {[%clk 0:02:16]}  e5 {[%clk 0:01:07]} 22. Be2 {[%clk 0:02:13]}  e4 {[%clk 0:01:05]} 23. c4 {[%clk 0:02:03]}  dxc4 {[%clk 0:00:54]} 24. Bxc4 {[%clk 0:01:58]}  a6 {[%clk 0:00:53]} 25. Bb3 {[%clk 0:01:50]}  Qc6 {[%clk 0:00:47]} 26. a4 {[%clk 0:01:30]}  Ka7 {[%clk 0:00:46]} 27. a5 {[%clk 0:01:24]}  Qb5 {[%clk 0:00:36]} 28. Qc4 {[%clk 0:01:13]}  Qxa5 {[%clk 0:00:31]} 29. Qxe4 {[%clk 0:01:12]}  Qb6 {[%clk 0:00:26]} 30. Qc2 {[%clk 0:01:03]}  Rxd1+ {[%clk 0:00:23]} 31. Rxd1 {[%clk 0:01:03]}  Rc8 {[%clk 0:00:23]} 32. Bc4 {[%clk 0:01:02]}  Qb4 {[%clk 0:00:23]} 33. Rd7 {[%clk 0:00:52]}  Rc6 {[%clk 0:00:19]} 34. Rxg7 {[%clk 0:00:45]}  Qe1+ {[%clk 0:00:17]} 35. Ka2 {[%clk 0:00:40]}  Rb6 {[%clk 0:00:17]} 36. Qc3 {[%clk 0:00:23]}  Qxf2 {[%clk 0:00:13]} 37. Bd5 {[%clk 0:00:21]}  Qe2 {[%clk 0:00:05]} 38. e4 {[%clk 0:00:20]}  Qf2 {[%clk 0:00:02]} 39. Rf7 {[%clk 0:00:16]}  Qxg2 {[%clk 0:00:00]} 40. Bxb7 {[%clk 0:00:14]} 1-0


[Site "https://www.chess.com"]

[Event "Titled Tuesday Blitz July 4 Late 2023"]
[White "Luong Phuong Hanh"]
[Black "Cluke86"]
[WhiteFideId "12401013"]
[WhiteElo "2469"]
[BlackElo "2326"]
[Result "0-1"]
[Round "9"]
[TimeControl "180+2"]
[Date "2023.07.04"]
[WhiteClock "0:00:00"]
[BlackClock "0:00:08"]
[Board "85"]

1. d4 {[%clk 0:02:54]}  d6 {[%clk 0:02:59]} 2. Nf3 {[%clk 0:02:53]}  Nd7 {[%clk 0:02:57]} 3. e4 {[%clk 0:02:53]}  e5 {[%clk 0:02:51]} 4. dxe5 {[%clk 0:02:22]}  dxe5 {[%clk 0:02:50]} 5. Bc4 {[%clk 0:02:20]}  Be7 {[%clk 0:02:45]} 6. O-O {[%clk 0:02:19]}  Ngf6 {[%clk 0:02:44]} 7. Nc3 {[%clk 0:02:17]}  c6 {[%clk 0:02:44]} 8. Be3 {[%clk 0:02:12]}  Ng4 {[%clk 0:02:42]} 9. Bd2 {[%clk 0:02:10]}  Qc7 {[%clk 0:02:39]} 10. Ng5 {[%clk 0:01:55]}  Bxg5 {[%clk 0:02:25]} 11. Bxg5 {[%clk 0:01:54]}  Ngf6 {[%clk 0:02:15]} 12. f4 {[%clk 0:01:53]}  h6 {[%clk 0:02:13]} 13. Bxf6 {[%clk 0:01:52]}  Nxf6 {[%clk 0:02:12]} 14. Kh1 {[%clk 0:01:46]}  O-O {[%clk 0:02:09]} 15. f5 {[%clk 0:01:46]}  b5 {[%clk 0:02:08]} 16. Bb3 {[%clk 0:01:44]}  b4 {[%clk 0:02:08]} 17. Ne2 {[%clk 0:01:42]}  Nxe4 {[%clk 0:02:07]} 18. Qe1 {[%clk 0:01:38]}  Qe7 {[%clk 0:01:59]} 19. Ng1 {[%clk 0:01:29]}  Nf6 {[%clk 0:01:48]} 20. Nf3 {[%clk 0:01:29]}  e4 {[%clk 0:01:33]} 21. Nd2 {[%clk 0:01:21]}  c5 {[%clk 0:01:28]} 22. Nc4 {[%clk 0:01:17]}  Bb7 {[%clk 0:01:25]} 23. Ne3 {[%clk 0:01:13]}  Rad8 {[%clk 0:01:23]} 24. Rd1 {[%clk 0:01:11]}  Rxd1 {[%clk 0:01:22]} 25. Qxd1 {[%clk 0:01:11]}  Rd8 {[%clk 0:01:22]} 26. Qe2 {[%clk 0:01:12]}  Rd6 {[%clk 0:01:13]} 27. Rd1 {[%clk 0:01:11]}  Qd7 {[%clk 0:01:10]} 28. Rxd6 {[%clk 0:01:09]}  Qxd6 {[%clk 0:01:11]} 29. h3 {[%clk 0:01:09]}  Ba6 {[%clk 0:01:06]} 30. Qe1 {[%clk 0:01:06]}  Nh5 {[%clk 0:00:55]} 31. Kg1 {[%clk 0:00:59]}  Qd4 {[%clk 0:00:53]} 32. c3 {[%clk 0:00:49]}  bxc3 {[%clk 0:00:49]} 33. Qxc3 {[%clk 0:00:50]}  Nf4 {[%clk 0:00:42]} 34. Kh2 {[%clk 0:00:46]}  Ne2 {[%clk 0:00:35]} 35. Qxd4 {[%clk 0:00:36]}  cxd4 {[%clk 0:00:36]} 36. Ng4 {[%clk 0:00:31]}  Nc1 {[%clk 0:00:30]} 37. Bd5 {[%clk 0:00:29]}  e3 {[%clk 0:00:28]} 38. Kg3 {[%clk 0:00:27]}  e2 {[%clk 0:00:26]} 39. Kf2 {[%clk 0:00:22]}  Nd3+ {[%clk 0:00:21]} 40. Kxe2 {[%clk 0:00:23]}  Nf4+ {[%clk 0:00:21]} 41. Kf3 {[%clk 0:00:23]}  Nxd5 {[%clk 0:00:22]} 42. Ke4 {[%clk 0:00:24]}  Nb4 {[%clk 0:00:21]} 43. Kxd4 {[%clk 0:00:24]}  Nxa2 {[%clk 0:00:21]} 44. f6 {[%clk 0:00:23]}  h5 {[%clk 0:00:20]} 45. Ne5 {[%clk 0:00:21]}  gxf6 {[%clk 0:00:20]} 46. Nc6 {[%clk 0:00:21]}  Bb7 {[%clk 0:00:18]} 47. Nxa7 {[%clk 0:00:19]}  Bxg2 {[%clk 0:00:19]} 48. h4 {[%clk 0:00:17]}  Nb4 {[%clk 0:00:18]} 49. Nb5 {[%clk 0:00:16]}  Nc6+ {[%clk 0:00:17]} 50. Ke3 {[%clk 0:00:16]}  Kg7 {[%clk 0:00:18]} 51. Nd6 {[%clk 0:00:13]}  Bd5 {[%clk 0:00:17]} 52. Kf4 {[%clk 0:00:13]}  Kg6 {[%clk 0:00:16]} 53. Ne8 {[%clk 0:00:08]}  Nd4 {[%clk 0:00:15]} 54. b4 {[%clk 0:00:06]}  Ne6+ {[%clk 0:00:14]} 55. Kg3 {[%clk 0:00:06]}  Kf5 {[%clk 0:00:12]} 56. b5 {[%clk 0:00:06]}  Ke5 {[%clk 0:00:10]} 57. b6 {[%clk 0:00:05]}  Bb7 {[%clk 0:00:09]} 58. Kf2 {[%clk 0:00:01]}  f5 {[%clk 0:00:10]} 59. Ke3 {[%clk 0:00:01]}  f4+ {[%clk 0:00:10]} 60. Kf2 {[%clk 0:00:02]}  f3 {[%clk 0:00:10]} 61. Kg3 {[%clk 0:00:02]}  Ke4 {[%clk 0:00:07]} 62. Nd6+ {[%clk 0:00:00]}  Ke3 {[%clk 0:00:08]} 0-1


[Site "https://www.chess.com"]